bitfinex/quotes_SOLUSD_20241001
["timestamp","ask_amount","ask_price","bid_price","bid_amount"]
[1727806938066,23.776884,148.65,148.54,6.3234]
[1727806938377,23.776884,148.65,148.5,21.6528]
[1727806938378,16.8222,148.62,148.5,21.6528]
[1727806938580,23.776884,148.63,148.5,21.6528]
[1727806938770,23.776884,148.63,148.52,6.733]
[1727806938771,6.7309,148.57,148.52,6.733]
[1727806939284,23.776884,148.63,148.51,22.87609173]
[1727806939285,40.597484,148.63,148.51,22.87609173]
[1727806939483,16.8235,148.61,148.52,16.8318]
[1727806939686,6.7322,148.54,148.5,28.3863]
[1727806939974,23.776884,148.58,148.5,28.3863]
[1727806940176,6.7318,148.55,148.5,28.3863]
[1727806940564,6.7318,148.55,148.51,6.7334]
[1727806940786,6.73,148.59,148.52,18.17911457]
[1727806940955,6.73,148.59,148.52,16.8327]
[1727806941268,6.73,148.59,148.54,16.8298]
[1727806941464,6.7289,148.62,148.56,6.731]
[1727806941689,72.9099439,148.66,148.55,6.7316]
[1727806941690,6.7295,148.6,148.55,6.7316]
[1727806941889,6.7299,148.59,148.54,23.5616]
[1727806942256,6.7286,148.62,148.57,6.7308]
[1727806942582,6.7292,148.61,148.56,6.7312]
[1727806942963,6.7292,148.61,148.54,16.8298]
[1727806943180,6.7292,148.61,148.57,6.7307]
[1727806943589,6.7286,148.62,148.57,6.7307]
[1727806943794,2.01049949,148.66,148.58,1.3458862]
[1727806943961,0.8449439,148.66,148.6,16.8227]
[1727806944156,0.8449439,148.66,148.6,23.5517]
[1727806945064,6.7276,148.64,148.6,23.5517]
[1727806945880,0.8449439,148.66,148.6,23.5517]
[1727806946181,23.776884,148.65,148.59,6.7298]
[1727806946380,6.7286,148.62,148.57,45.5023]
[1727806946681,6.7281,148.63,148.58,6.7302]
[1727806947080,23.776884,148.65,148.57,38.7719]
[1727806947253,23.776884,148.65,148.55,22.86475576]
[1727806947254,6.7301,148.59,148.55,6.7317]
[1727806947664,6.7296,148.6,148.55,6.7317]
[1727806947866,23.776884,148.63,148.54,16.8298]
[1727806948067,6.7295,148.6,148.55,6.7313]
[1727806949859,6.7304,148.58,148.54,16.8298]
[1727806950283,23.776884,148.61,148.51,16.8332]
[1727806950474,6.7322,148.54,148.49,28.719]
[1727806950660,43.776884,148.61,148.49,15.8374]
[1727806950867,6.7309,148.57,148.52,6.7327]
[1727806951267,6.7304,148.58,148.53,6.7325]
[1727806951466,23.776884,148.61,148.51,22.86475576]
[1727806951667,23.776884,148.61,148.55,6.7314]
[1727806951668,6.7299,148.59,148.55,6.7314]
[1727806952572,6.5318,148.62,148.53,16.831]
[1727806952886,16.8245,148.6,148.5,16.8345]
[1727806953100,6.7308,148.57,148.53,6.7325]
[1727806953964,6.7294,148.61,148.54,18.17560815]
[1727806954172,6.7294,148.61,148.56,6.7308]
[1727806954379,6.7289,148.62,148.57,6.7306]
[1727806954775,6.7289,148.62,148.58,6.7303]
[1727806955499,24.1251439,148.66,148.58,6.7303]
[1727806955796,0.8449439,148.66,148.57,22.86475576]
[1727806955970,7.5716439,148.66,148.61,6.7289]
[1727806956286,0.8449439,148.66,148.6,16.823]
[1727806956466,6.7272,148.65,148.6,16.823]
[1727806957278,6.7272,148.65,148.6,23.5523]
[1727806957473,0.8449439,148.66,148.6,23.5523]
[1727806957474,0.8449439,148.66,148.61,6.7289]
[1727806957665,0.8449439,148.66,148.62,16.8206]
[1727806957869,0.8449439,148.66,148.63,1.34558162]
[1727806958081,0.8449439,148.66,148.63,6.7279]
[1727806959570,0.8449439,148.66,148.62,23.549]
[1727806961384,0.8449439,148.66,148.64,6.7276]
[1727806961585,0.8449439,148.66,148.65,1.3452993]
[1727806961895,0.8449439,148.66,148.64,6.7276]
[1727806962789,0.8449439,148.66,148.6,6.729]
[1727806962979,6.7276,148.65,148.6,6.729]
[1727806963594,6.7276,148.65,148.61,6.7289]
[1727806963791,7.5717439,148.66,148.59,22.86475576]
[1727806963977,0.8449439,148.66,148.64,6.7276]
[1727806964174,0.8449439,148.66,148.57,6.3173]
[1727806964175,0.8449439,148.66,148.59,22.86475576]
[1727806964390,7.5718439,148.66,148.6,36.8231]
[1727806964688,6.7272,148.65,148.61,6.7289]
[1727806964890,0.8449439,148.66,148.61,6.7289]
[1727806964891,7.5717439,148.66,148.61,6.7289]
[1727806965472,6.7273,148.65,148.61,6.7289]
[1727806966273,0.8449439,148.66,148.63,6.728]
[1727806966796,0.8449439,148.66,148.64,6.7276]
[1727806968493,0.8449439,148.66,148.62,16.8208]
[1727806968698,0.8449439,148.66,148.63,6.7279]
[1727806969193,0.8449439,148.66,148.62,23.549]
[1727806969400,0.8449439,148.66,148.63,6.728]
[1727806970378,0.8449439,148.66,148.59,33.6476]
[1727806970379,0.8449439,148.66,148.59,16.824]
[1727806971193,7.5718439,148.66,148.61,6.7285]
[1727806971392,7.5718439,148.66,148.62,6.7285]
[1727806971906,0.8449439,148.66,148.58,22.86475576]
[1727806972709,0.8449439,148.66,148.63,6.7277]
[1727806973288,0.8449439,148.66,148.64,6.7275]
[1727806973590,0.8449439,148.66,148.62,16.821]
[1727806973591,0.8449439,148.66,148.63,6.728]
[1727806974806,0.8449439,148.66,148.64,6.7276]
[1727806975506,7.5716439,148.66,148.62,23.5494]
[1727806976211,0.8449439,148.66,148.62,16.821]
[1727806977098,0.8449439,148.66,148.64,6.7273]
[1727806978002,0.8449439,148.66,148.65,6.7272]
[1727806978185,0.8449439,148.66,148.65,8.07247447]
[1727806978799,0.8449439,148.66,148.65,8.07235158]
[1727806979103,0.8449439,148.66,148.65,6.7272]
[1727806980313,0.8449439,148.66,148.65,26.7272]
[1727806980880,0.8449439,148.66,148.65,6.7272]
[1727806981078,0.8449439,148.66,148.64,16.8189]
[1727806981278,0.8449439,148.66,148.63,6.728]
[1727806981279,7.5716439,148.66,148.62,6.7284]
[1727806982100,0.8449439,148.66,148.58,55.10993785]
[1727806982283,6.7284,148.63,148.58,61.83983785]
[1727806982491,6.7281,148.63,148.59,6.7298]
[1727806982908,6.729,148.61,148.58,16.825]
[1727806983211,23.776884,148.65,148.52,22.85553785]
[1727806983510,6.7304,148.58,148.53,6.7325]
[1727806983704,16.8208,148.63,148.52,22.85553785]
[1727806983892,23.776884,148.65,148.56,22.85553785]
[1727806984085,6.7277,148.64,148.59,6.7295]
[1727806984289,6.7277,148.64,148.58,16.8252]
[1727806984495,23.776884,148.65,148.6,6.7294]
[1727806984687,30.504084,148.65,148.6,6.7294]
[1727806985098,6.7277,148.64,148.59,6.7298]
[1727806985588,6.7272,148.65,148.6,6.7293]
[1727806985789,7.5716439,148.66,148.58,22.85553785]
[1727806986004,0.8449439,148.66,148.65,6.7272]
[1727806986511,0.8449439,148.66,148.64,6.7275]
[1727806987388,0.8449439,148.66,148.62,16.8205]
[1727806988115,0.8449439,148.66,148.62,23.5487]
[1727806988706,0.8449439,148.66,148.65,6.7272]
[1727806989517,0.8449439,148.66,148.65,8.07243302]
[1727806989893,0.8449439,148.66,148.64,23.5462]
[1727806990095,0.8449439,148.66,148.65,1.34523059]
[1727806990622,0.8449439,148.66,148.65,6.7272]
[1727806992115,0.8449439,148.66,148.64,23.5461]
[1727806992417,0.8449439,148.66,148.65,6.7272]
[1727806993007,0.8449439,148.66,148.65,8.07242582]
[1727806993220,0.8449439,148.66,148.65,6.7272]
[1727806996115,0.8449439,148.66,148.64,23.5461]
[1727806996631,0.8449439,148.66,148.65,6.7272]
[1727806996928,0.8449439,148.66,148.65,28.07229306]
[1727806997225,22.2491,148.77,148.65,43.776884]
[1727806997425,23.0940439,148.81,148.72,22.85553785]
[1727806997604,6.7216,148.78,148.73,23.5317]
[1727806998129,23.0940439,148.81,148.73,16.8085]
[1727806998316,6.723,148.75,148.7,46.39243785]
[1727806998638,6.7221,148.77,148.72,6.7236]
[1727806999216,6.7221,148.77,148.73,6.7235]
[1727807000018,23.0940439,148.81,148.74,1.34454201]
[1727807000201,6.7205,148.8,148.75,6.7223]
[1727807000508,6.7209,148.79,148.75,6.7223]
[1727807001220,6.7209,148.79,148.74,16.8075]
[1727807001401,6.7209,148.79,148.74,23.5304]
[1727807001797,6.7205,148.8,148.75,6.7223]
[1727807002321,6.7209,148.79,148.75,6.7223]
[1727807002514,23.0940439,148.81,148.74,16.8075]
[1727807003518,23.776884,148.8,148.74,16.8075]
[1727807003819,6.7213,148.78,148.74,16.8075]
[1727807004034,23.776884,148.8,148.72,6.7239]
[1727807004200,6.7225,148.76,148.71,46.39033785]
[1727807004401,6.7225,148.76,148.72,6.7237]
[1727807004926,6.7218,148.77,148.72,6.7237]
[1727807005122,40.578484,148.8,148.71,39.66603785]
[1727807005322,16.8036,148.78,148.68,16.8139]
[1727807005527,6.7241,148.72,148.68,16.8139]
[1727807005824,6.7257,148.69,148.65,16.8176]
[1727807006026,6.7249,148.7,148.65,23.5446]
[1727807006199,23.776884,148.73,148.64,6.7275]
[1727807006400,23.776884,148.71,148.6,38.74133785]
[1727807006613,6.7258,148.68,148.61,16.8217]
[1727807006805,23.776884,148.72,148.61,16.8217]
[1727807007020,6.7271,148.66,148.61,23.5506]
[1727807007210,6.7271,148.66,148.61,46.40613785]
[1727807007416,6.7264,148.67,148.62,6.7285]
[1727807008606,6.7262,148.68,148.61,16.8217]
[1727807009023,6.7267,148.67,148.61,16.8217]
[1727807009911,6.7269,148.66,148.61,16.8217]
[1727807010111,6.7269,148.66,148.62,6.7285]
[1727807013520,23.776884,148.7,148.61,16.8217]
[1727807013708,23.776884,148.7,148.63,6.7278]
[1727807013910,6.7263,148.67,148.63,6.7278]
[1727807014611,6.7304,148.58,148.52,15.3285]
[1727807014923,6.7294,148.6,148.56,6.7312]
[1727807015120,6.7281,148.63,148.58,6.73]
[1727807015722,6.7277,148.64,148.59,6.7298]
[1727807016228,6.7282,148.63,148.59,6.7298]
[1727807016922,22.6424,148.65,148.6,6.7292]
[1727807017250,6.6622,148.67,148.6,16.823]
[1727807017537,22.0795,148.69,148.64,23.5462]
[1727807017719,15.3541,148.69,148.62,20.0]
[1727807017914,15.3541,148.69,148.6,16.4712]
[1727807018140,6.7267,148.66,148.61,23.5507]
[1727807019129,15.3541,148.69,148.61,16.8219]
[1727807019317,6.7262,148.68,148.63,6.728]
[1727807019629,6.725,148.7,148.66,6.7267]
[1727807019827,6.725,148.7,148.66,8.07184319]
[1727807020033,6.725,148.7,148.66,1.34514319]
[1727807020512,13.1899,148.71,148.67,6.7262]
[1727807020731,6.4653,148.71,148.67,6.7262]
[1727807020930,16.3341,148.73,148.68,6.7257]
[1727807021244,12.8603,148.75,148.7,6.7248]
[1727807021444,12.8603,148.75,148.71,8.06913514]
[1727807021649,12.8603,148.75,148.67,36.55776637]
[1727807021650,22.7238,148.77,148.72,1.34467026]
[1727807021941,22.7238,148.77,148.72,8.06827026]
[1727807022319,6.7221,148.77,148.72,6.7236]
[1727807022739,6.1373,148.79,148.73,16.8083]
[1727807022939,6.7204,148.8,148.76,6.7221]
[1727807023736,0.8449439,148.81,148.76,6.7221]
[1727807023916,7.5649439,148.81,148.76,6.7221]
[1727807024235,6.7211,148.79,148.74,6.7231]
[1727807024419,0.8449439,148.81,148.75,6.7226]
[1727807025238,7.5649439,148.81,148.76,6.7221]
[1727807025538,0.8449439,148.81,148.8,6.7204]
[1727807026322,0.8449439,148.81,148.79,6.7207]
[1727807026630,0.8449439,148.81,148.78,43.22667795]
[1727807027019,0.8449439,148.81,148.79,6.7208]
[1727807027247,0.8449439,148.81,148.78,43.22667795]
[1727807027447,0.8449439,148.81,148.74,33.6142]
[1727807027448,6.7205,148.8,148.76,26.7222]
[1727807027617,7.5649439,148.81,148.76,26.7222]
[1727807027817,0.8449439,148.81,148.74,16.8074]
[1727807028316,7.5649439,148.81,148.76,6.7221]
[1727807028940,6.7204,148.8,148.75,6.7226]
[1727807029326,6.7204,148.8,148.74,16.8074]
[1727807029327,0.8449439,148.81,148.74,16.8074]
[1727807029636,7.5649439,148.81,148.76,16.8049]
[1727807029824,7.5649439,148.81,148.76,23.527]
[1727807030657,6.7215,148.78,148.73,23.5322]
[1727807030820,6.7211,148.79,148.74,6.7231]
[1727807031751,6.7205,148.8,148.75,6.7226]
[1727807031918,6.7217,148.77,148.73,16.8087]
[1727807032123,6.7209,148.79,148.73,16.8087]
[1727807032531,6.7205,148.8,148.75,6.7226]
[1727807032841,6.7209,148.79,148.74,6.723]
[1727807033236,6.7213,148.78,148.73,23.5321]
[1727807033433,6.7228,148.75,148.7,23.5369]
[1727807033742,6.158,148.79,148.7,16.8121]
[1727807033743,23.776884,148.78,148.7,16.8121]
[1727807033935,23.776884,148.78,148.68,36.50547795]
[1727807033936,6.7236,148.73,148.68,43.23117795]
[1727807034323,6.7236,148.73,148.69,6.7253]
[1727807034744,16.804,148.78,148.68,6.7258]
[1727807034745,6.724,148.72,148.68,6.7258]
[1727807034946,6.724,148.72,148.67,23.5414]
[1727807035132,6.724,148.72,148.68,6.7257]
[1727807035843,6.7237,148.73,148.68,6.7257]
[1727807036439,23.776884,148.77,148.69,6.7252]
[1727807037453,6.7231,148.74,148.7,8.06962663]
[1727807037754,6.7237,148.73,148.68,6.7257]
[1727807038251,6.7237,148.73,148.67,16.8152]
[1727807038447,23.776884,148.77,148.69,6.7251]
[1727807038748,6.7232,148.74,148.69,6.7251]
[1727807038935,6.158,148.79,148.67,16.8152]
[1727807038936,6.723,148.75,148.7,23.5367]
[1727807039556,22.9608,148.79,148.65,36.50547795]
[1727807039766,15.514,148.74,148.65,6.7268]
[1727807040050,15.514,148.74,148.61,16.8221]
[1727807040051,16.812,148.71,148.61,16.8221]
[1727807040231,16.812,148.71,148.59,85.73117795]
[1727807040232,6.7252,148.7,148.65,6.7268]
[1727807040841,6.1676,148.72,148.65,36.50547795]
[1727807041146,6.2744,148.76,148.68,36.50547795]
[1727807041351,6.7232,148.74,148.69,6.725]
[1727807041553,6.7236,148.73,148.69,6.725]
[1727807041733,6.7232,148.74,148.69,6.725]
[1727807041928,6.7232,148.74,148.7,6.7248]
[1727807042154,6.2744,148.76,148.71,8.06913244]
[1727807042449,6.723,148.75,148.7,23.5367]
[1727807042648,6.7231,148.74,148.7,23.5367]
[1727807043128,33.6022,148.8,148.71,70.12787795]
[1727807043129,6.3047,148.8,148.71,70.12787795]
[1727807043329,13.0254,148.8,148.75,6.7225]
[1727807043546,6.3047,148.8,148.79,6.7208]
[1727807043728,0.8449439,148.81,148.79,6.7208]
[1727807044449,0.8449439,148.81,148.8,8.06445663]
[1727807045036,0.8449439,148.81,148.8,6.7204]
[1727807048960,0.8449439,148.81,148.8,8.06412345]
[1727807049542,0.8449439,148.81,148.8,6.7204]
[1727807050149,0.8449439,148.81,148.8,28.06418091]
[1727807050463,0.3136791,148.9,148.82,6.7195]
[1727807050839,6.7167,148.89,148.82,6.7195]
[1727807051043,7.0296791,148.9,148.82,8.06305027]
[1727807051250,6.7164,148.89,148.82,8.06305027]
[1727807051845,6.7164,148.89,148.82,6.7195]
[1727807052046,0.3136791,148.9,148.82,6.7195]
[1727807052440,0.3136791,148.9,148.82,8.06289363]
[1727807052641,0.3136791,148.9,148.82,6.7195]
[1727807053363,0.3136791,148.9,148.82,50.496384]
[1727807053539,0.3136791,148.9,148.82,26.7195]
[1727807054052,0.3136791,148.9,148.89,6.7163]
[1727807054261,0.3136791,148.9,148.88,16.7919]
[1727807054752,0.3136791,148.9,148.88,23.5083]
[1727807054947,0.3136791,148.9,148.89,6.7163]
[1727807055147,0.3136791,148.9,148.88,23.5086]
[1727807055854,6.7163,148.89,148.81,36.47796054]
[1727807056153,6.7163,148.89,148.85,6.7181]
[1727807056343,6.7163,148.89,148.84,6.7185]
[1727807056746,6.7163,148.89,148.85,6.7181]
[1727807057154,6.7163,148.89,148.84,6.7185]
[1727807057346,6.7163,148.89,148.85,6.7181]
[1727807057850,24.0905631,148.9,148.85,6.7181]
[1727807058060,30.8065631,148.9,148.85,6.7181]
[1727807058460,0.3136791,148.9,148.87,6.7171]
[1727807058848,30.8065631,148.9,148.86,23.5112]
[1727807059353,0.3136791,148.9,148.86,16.7937]
[1727807059682,0.3136791,148.9,148.88,16.7915]
[1727807060876,7.0298791,148.9,148.85,23.5127]
[1727807061043,7.0298791,148.9,148.85,16.7947]
[1727807061249,7.0298791,148.9,148.86,6.7177]
[1727807061661,0.3136791,148.9,148.86,8.06106525]
[1727807061863,0.3136791,148.9,148.89,6.7163]
[1727807062656,0.3136791,148.9,148.88,6.7167]
[1727807063270,0.3136791,148.9,148.89,6.7163]
[1727807063979,0.3136791,148.9,148.88,6.7165]
[1727807064168,0.3136791,148.9,148.89,6.7163]
[1727807066152,0.3136791,148.9,148.89,26.7163]
[1727807066348,0.3136791,148.9,148.89,28.0589622]
[1727807067254,0.8449439,148.96,148.95,6.7136]
[1727807067772,0.8449439,148.96,148.95,29.46217619]
[1727807068860,0.8449439,148.96,148.95,6.7136]
[1727807069975,0.8449439,148.96,148.94,16.7847]
[1727807070277,0.8449439,148.96,148.95,6.7136]
[1727807070968,0.8449439,148.96,148.95,8.05609448]
[1727807071163,0.8449439,148.96,148.95,6.7136]
[1727807072883,0.8449439,148.96,148.95,51.83275153]
[1727807073754,21.7778,149.04,149.0,6.711]
[1727807073954,21.7778,149.04,149.01,1.34204294]
[1727807074386,21.6819,149.09,149.01,1.34204294]
[1727807074558,6.7085,149.07,149.02,6.7101]
[1727807074763,21.6819,149.09,149.03,1.3418526]
[1727807074959,6.7087,149.06,149.02,6.7101]
[1727807075172,6.7101,149.03,148.99,6.7117]
[1727807075471,6.7096,149.04,148.99,6.7117]
[1727807075672,6.7096,149.04,149.0,8.05334382]
[1727807075988,6.7096,149.04,148.99,8.05375644]
[1727807076480,16.7699,149.08,148.97,6.7126]
[1727807076481,23.776884,149.05,148.97,6.7126]
[1727807077475,6.7126,148.98,148.92,16.7871]
[1727807077669,6.7132,148.96,148.92,23.5017]
[1727807077876,40.553884,149.02,148.92,16.7871]
[1727807077877,6.7137,148.95,148.92,16.7871]
[1727807078386,6.7133,148.96,148.89,33.2949]
[1727807078684,6.7133,148.96,148.92,6.7149]
[1727807079072,6.7124,148.98,148.94,23.4987]
[1727807079271,6.7119,148.99,148.94,16.7847]
[1727807079464,6.7119,148.99,148.95,6.7136]
[1727807079670,21.5486,149.03,148.94,16.7847]
[1727807079877,21.5486,149.03,148.96,6.713]
[1727807079878,6.7113,149.01,148.96,6.713]
[1727807080181,21.5486,149.03,148.91,36.41073863]
[1727807080182,6.7134,148.96,148.92,6.7149]
[1727807080361,16.7773,149.02,148.92,6.7149]
[1727807080565,55.0995,149.03,148.91,16.7879]
[1727807080566,16.7789,149.0,148.91,16.7879]
[1727807080876,71.8753,149.03,148.93,6.7141]
[1727807081073,6.7126,148.98,148.94,6.714]
[1727807081271,6.7126,148.98,148.93,23.5003]
[1727807082076,23.776884,149.02,148.95,16.7833]
[1727807082473,23.776884,149.02,148.91,36.41073863]
[1727807082677,16.7778,149.01,148.92,23.5019]
[1727807082872,6.7127,148.97,148.93,6.7145]
[1727807083384,6.7127,148.97,148.92,16.787]
[1727807083595,6.7127,148.97,148.92,23.5019]
[1727807083888,6.7127,148.97,148.93,6.7143]
[1727807084187,16.7778,149.01,148.92,16.787]
[1727807084395,23.776884,149.02,148.9,33.5795]
[1727807084396,6.7117,149.0,148.95,6.7133]
[1727807084684,6.7121,148.99,148.95,6.7133]
[1727807085276,23.776884,149.02,148.94,16.7845]
[1727807085464,6.7121,148.99,148.94,23.4985]
[1727807086891,6.7121,148.99,148.95,6.7136]
[1727807087983,6.7109,149.01,148.97,6.7126]
[1727807088203,6.7114,149.0,148.96,23.4958]
[1727807088492,6.7104,149.03,148.99,6.7114]
[1727807088700,6.7104,149.03,148.99,8.05352742]
[1727807088870,39.4507,149.07,148.98,23.4921]
[1727807088871,6.7107,149.02,148.98,23.4921]
[1727807090075,6.711,149.01,148.98,16.78]
[1727807090275,6.711,149.01,148.97,6.7125]
[1727807090701,16.7731,149.05,148.98,1.34232845]
[1727807090991,6.7105,149.03,148.98,1.34232845]
[1727807091199,6.7105,149.03,148.98,6.7121]
[1727807091400,6.7105,149.03,148.97,16.7815]
[1727807091401,16.7731,149.05,148.97,16.7815]
[1727807091689,16.7731,149.05,148.97,23.4939]
[1727807091907,16.7731,149.05,148.98,6.7122]
[1727807092073,23.776884,149.04,148.98,6.7122]
[1727807092894,6.7114,149.0,148.96,6.7131]
[1727807093077,6.7118,148.99,148.95,6.7133]
[1727807093473,23.776884,149.04,148.94,53.19513863]
[1727807093672,4.89428186,149.0,148.96,6.7128]
[1727807093893,23.776884,149.04,148.97,6.7126]
[1727807094091,23.776884,149.04,148.96,39.5353323]
[1727807094299,23.776884,149.04,148.98,6.7122]
[1727807094683,23.776884,149.04,148.96,22.7527323]
[1727807095000,23.776884,149.04,148.98,16.7805]
[1727807095177,6.7105,149.02,148.98,23.4926]
[1727807095371,23.776884,149.04,148.98,23.4926]
[1727807095372,23.776884,149.04,148.98,16.7805]
[1727807095590,6.7103,149.03,148.98,23.4925]
[1727807096000,23.776884,149.04,148.98,16.7805]
[1727807096383,6.711,149.01,148.98,16.7805]
[1727807096798,6.7104,149.03,148.98,23.4924]
[1727807097393,6.7105,149.02,148.98,23.4924]
[1727807097981,6.711,149.01,148.98,16.7805]
[1727807099299,6.7122,148.99,148.95,23.4969]
[1727807099607,6.7112,149.01,148.97,6.7126]
[1727807099786,6.7121,148.99,148.95,6.7135]
[1727807100179,40.551484,149.04,148.94,39.5371323]
[1727807100379,6.7118,148.99,148.95,6.7134]
[1727807100882,6.7118,148.99,148.94,39.5371323]
[1727807100883,6.7123,148.98,148.94,23.4985]
[1727807101298,23.776884,149.01,148.95,1.34258241]
[1727807101482,6.7121,148.99,148.95,6.7135]
[1727807101677,16.7754,149.03,148.96,8.05555761]
[1727807101678,6.7115,149.0,148.96,8.05555761]
[1727807101886,6.7115,149.0,148.96,6.7131]
[1727807102092,6.7126,148.98,148.93,6.7141]
[1727807102409,56.2223,149.07,148.85,16.2638]
[1727807102410,16.7838,148.96,148.85,16.2638]
[1727807102614,6.716,148.9,148.84,6.7185]
[1727807102921,6.1048,148.94,148.83,16.7972]
[1727807102922,6.7168,148.88,148.83,16.7972]
[1727807103086,16.2377,148.93,148.83,21.537378]
[1727807103407,30.492284,148.92,148.87,6.7172]
[1727807104002,16.2377,148.93,148.87,16.7925]
[1727807104302,6.1048,148.94,148.9,6.7158]
[1727807105505,23.776884,148.95,148.89,16.7899]
[1727807106209,23.776884,148.96,148.91,16.788]
[1727807106587,23.776884,148.96,148.92,6.715]
[1727807107187,6.5023,148.98,148.88,76.44447637]
[1727807107416,6.5023,148.98,148.95,6.7135]
[1727807107703,6.5023,148.98,148.88,76.44447637]
[1727807107704,6.5023,148.98,148.91,6.7151]
[1727807107906,6.7132,148.96,148.91,6.7151]
[1727807108291,6.7136,148.95,148.91,6.7151]
[1727807108905,23.776884,148.97,148.9,16.7894]
[1727807109105,23.776884,148.97,148.93,6.7141]
[1727807109283,13.2147,148.98,148.93,6.7141]
[1727807109683,13.2147,148.98,148.92,16.7866]
[1727807109907,6.7133,148.96,148.92,23.5016]
[1727807110103,6.5023,148.98,148.92,23.5016]
[1727807110493,30.490084,148.97,148.92,23.5016]
[1727807110688,6.7133,148.96,148.92,23.5016]
[1727807111117,6.7138,148.95,148.89,16.7906]
[1727807111300,23.776884,148.94,148.9,6.7158]
[1727807111502,23.776884,148.94,148.91,6.7153]
[1727807112497,30.491084,148.94,148.89,16.7906]
[1727807112699,23.776884,148.94,148.89,16.7906]
[1727807112891,23.776884,148.94,148.9,6.7155]
[1727807113511,23.776884,148.95,148.91,6.7154]
[1727807114290,30.490484,148.95,148.91,6.7154]
[1727807115214,6.5023,148.98,148.88,33.5835]
[1727807115391,6.713,148.97,148.93,6.7144]
[1727807115590,6.5023,148.98,148.88,50.3748]
[1727807115806,6.7155,148.91,148.84,33.5919]
[1727807115987,15.5468,148.94,148.86,6.7173]
[1727807116191,6.7147,148.93,148.88,6.7165]
[1727807116421,15.5468,148.94,148.88,6.7165]
[1727807116422,6.715,148.92,148.88,6.7165]
[1727807116591,23.776884,148.91,148.88,6.7165]
[1727807117204,22.261,148.94,148.89,16.7904]
[1727807117415,23.776884,148.93,148.89,16.7904]
[1727807117638,23.776884,148.93,148.9,6.7156]
[1727807118321,6.715,148.92,148.86,16.7935]
[1727807118611,6.715,148.92,148.87,6.7169]
[1727807119012,23.776884,148.93,148.86,23.511]
[1727807119209,23.776884,148.93,148.86,16.7935]
[1727807119210,6.7162,148.9,148.86,16.7935]
[1727807119414,23.776884,148.88,148.84,6.7184]
[1727807119716,23.776884,148.88,148.85,6.718]
[1727807119896,23.776884,148.88,148.83,16.7969]
[1727807120096,30.493684,148.88,148.84,6.7184]
[1727807120410,23.776884,148.88,148.85,6.7181]
[1727807120735,23.776884,148.88,148.85,6.718]
[1727807122213,23.776884,148.92,148.85,16.7948]
[1727807122915,6.7155,148.91,148.87,6.7172]
[1727807123118,15.5468,148.94,148.87,16.7928]
[1727807123321,15.5468,148.94,148.91,16.7882]
[1727807123526,15.5468,148.94,148.85,70.04737637]
[1727807123697,15.5468,148.94,148.88,16.7912]
[1727807123895,15.5468,148.94,148.9,6.7158]
[1727807123896,22.2612,148.94,148.9,6.7158]
[1727807124292,15.5468,148.94,148.85,56.36945975]
[1727807124519,22.0648,148.98,148.87,22.77885975]
[1727807124813,6.7135,148.96,148.92,6.7149]
[1727807125318,6.7135,148.96,148.91,6.7153]
[1727807126096,23.776884,148.95,148.89,16.7903]
[1727807126311,28.7771,148.98,148.89,22.77885975]
[1727807126620,6.7128,148.97,148.93,16.7859]
[1727807126999,22.0648,148.98,148.91,6.7153]
[1727807127301,22.0648,148.98,148.9,23.5053]
[1727807127302,6.7137,148.95,148.9,23.5053]
[1727807127500,22.0648,148.98,148.89,22.77885975]
[1727807127700,23.776884,148.97,148.92,16.7868]
[1727807128250,28.7771,148.98,148.93,6.7141]
[1727807128805,6.7128,148.97,148.92,23.5017]
[1727807129517,23.776884,148.96,148.92,23.5017]
[1727807130412,22.0648,148.98,148.92,16.7868]